fUST/lending_fUST_20250129
["ID","MTS","AMOUNT","RATE_DAILY","PERIOD"]
[350733430,1738092637365,-500.0,0.00016575,2]
[350733431,1738092637375,-500.0,0.00016575,2]
[350733432,1738092637384,-500.0,0.00016575,2]
[350733433,1738092637394,-273.64789459,0.00016575,2]
[350733434,1738092637404,-500.0,0.00016575,2]
[350733435,1738092637413,-500.0,0.00016575,2]
[350733436,1738092637424,-500.0,0.00016575,2]
[350733437,1738092637434,-500.0,0.00016575,2]
[350733438,1738092637443,-579.6,0.00016575,2]
[350733439,1738092637453,-500.0,0.00016575,2]
[350733440,1738092637462,-500.0,0.00016575,2]
[350733441,1738092637475,-300.21185406,0.00016711,2]
[350733442,1738092637485,-575.94,0.00016711,2]
[350733443,1738092637495,-575.94,0.00016711,2]
[350733444,1738092637504,-575.94,0.00016711,2]
[350733445,1738092637513,-575.94,0.00016711,2]
[350733446,1738092637523,-575.94,0.00016711,2]
[350733447,1738092637533,-500.0,0.00016712,2]
[350733448,1738092637542,-500.0,0.00016712,2]
[350733449,1738092637552,-328.34210211,0.00016712,2]
[350733450,1738092637561,-500.0,0.00016712,2]
[350733451,1738092637571,-500.0,0.00016712,2]
[350733452,1738092637580,-500.0,0.00016712,2]
[350733453,1738092637590,-500.0,0.00016712,2]
[350733454,1738092637600,-500.0,0.00016712,2]
[350733457,1738092637609,-500.0,0.00016712,2]
[350733458,1738092637619,-500.0,0.00016712,2]
[350733459,1738092637629,-223.04094273,0.00016712,2]
[350733460,1738092637639,-500.0,0.00016712,2]
[350733461,1738092637649,-500.0,0.00016712,2]
[350733462,1738092637659,-500.0,0.00016712,2]
[350733463,1738092637669,-348.43923245,0.00016712,2]
[350733464,1738092637680,-500.0,0.00016712,2]
[350733465,1738092637690,-515.97259155,0.00016712,2]
[350733466,1738092637699,-500.0,0.00016712,2]
[350733467,1738092637709,-500.0,0.00016712,2]
[350733469,1738092637719,-500.0,0.00016712,2]
[350733470,1738092637731,-500.0,0.00016712,2]
[350733471,1738092637741,-622.66956473,0.00016712,2]
[350733472,1738092637751,-500.0,0.00016712,2]
[350733473,1738092637760,-500.0,0.00016712,2]
[350733474,1738092637769,-500.0,0.00016712,2]
[350733476,1738092637779,-500.0,0.00016712,2]
[350733478,1738092637790,-500.0,0.00016712,2]
[350733480,1738092637800,-500.0,0.00016712,2]
[350733482,1738092637809,-500.0,0.00016712,2]
[350733484,1738092637819,-500.0,0.00016712,2]
[350733487,1738092637829,-500.0,0.00016712,2]
[350733489,1738092637839,-500.0,0.00016712,2]
[350733490,1738092637849,-500.0,0.00016712,2]
[350733491,1738092637858,-500.0,0.00016712,2]
[350733492,1738092637868,-500.0,0.00016712,2]
[350733493,1738092637879,-500.0,0.00016712,2]
[350733495,1738092637889,-500.0,0.00016712,2]
[350733496,1738092637898,-500.0,0.00016712,2]
[350733497,1738092637907,-500.0,0.00016712,2]
[350733498,1738092637916,-523.04900035,0.00016712,2]
[350733499,1738092637926,-500.0,0.00016712,2]
[350733501,1738092637936,-500.0,0.00016712,2]
[350733503,1738092637946,-500.0,0.00016712,2]
[350733504,1738092637955,-500.0,0.00016712,2]
[350733506,1738092637965,-500.0,0.00016712,2]
[350733508,1738092637975,-491.24341778,0.00016712,2]
[350733510,1738092637985,-500.0,0.00016712,2]
[350733511,1738092637995,-500.0,0.00016712,2]
[350733513,1738092638004,-500.0,0.00016712,2]
[350733515,1738092638014,-500.0,0.00016712,2]
[350733516,1738092638027,-500.0,0.00016712,2]
[350733517,1738092638036,-500.0,0.00016712,2]
[350733518,1738092638045,-500.0,0.00016712,2]
[350733519,1738092638055,-1282.07,0.00016712,2]
[350733520,1738092638066,-2514.73,0.00016712,2]
[350733521,1738092638075,-500.0,0.00016712,2]
[350733522,1738092638084,-502.99,0.00016712,2]
[350733523,1738092638094,-742.35,0.00016712,2]
[350733525,1738092638104,-500.0,0.00016712,2]
[350733527,1738092638114,-12925.94,0.00016712,2]
[350733528,1738092638124,-500.0,0.00016712,2]
[350733529,1738092638133,-582.16,0.00016712,2]
[350733530,1738092638142,-500.0,0.00016712,2]
[350733531,1738092638151,-500.0,0.00016712,2]
[350733532,1738092638161,-500.0,0.00016712,2]
[350733533,1738092638170,-603.22,0.00016712,2]
[350733534,1738092638180,-799.47,0.00016712,2]
[350733535,1738092638190,-542.81041593,0.00016712,2]
[350733536,1738092638200,-3864.98,0.00016712,2]
[350733537,1738092638210,-1275.76,0.00016712,2]
[350733538,1738092638221,-500.0,0.00016712,2]
[350733539,1738092638231,-500.0,0.00016712,2]
[350733541,1738092638241,-500.0,0.00016712,2]
[350733543,1738092638252,-500.0,0.00016712,2]
[350733545,1738092638261,-500.0,0.00016712,2]
[350733547,1738092638271,-591.39333522,0.00016712,2]
[350733548,1738092638280,-870.88,0.00016712,2]
[350733549,1738092638290,-387.94281789,0.00016712,2]
[350733550,1738092638299,-500.0,0.00016712,2]
[350733551,1738092638309,-500.0,0.00016712,2]
[350733552,1738092638318,-500.0,0.00016712,2]
[350733553,1738092638328,-500.0,0.00016712,2]
[350733554,1738092638338,-500.0,0.00016712,2]
[350733555,1738092638347,-500.0,0.00016712,2]
[350733556,1738092638357,-601.01,0.00016712,2]
[350733557,1738092638367,-1787.58,0.00016712,2]
[350733558,1738092638470,-500.0,0.00016712,2]
[350733559,1738092638482,-500.0,0.00016712,2]
[350733560,1738092638491,-500.0,0.00016712,2]
[350733561,1738092638501,-500.0,0.00016712,2]
[350733562,1738092638510,-257.32944359,0.00016712,2]
[350733563,1738092638520,-500.0,0.00016712,2]
[350733565,1738092638530,-500.0,0.00016712,2]
[350733567,1738092638540,-500.0,0.00016712,2]
[350733569,1738092638550,-500.0,0.00016712,2]
[350733570,1738092638560,-500.0,0.00016712,2]
[350733571,1738092638569,-500.0,0.00016712,2]
[350733572,1738092638578,-500.0,0.00016712,2]
[350733573,1738092638588,-530.69,0.00016712,2]
[350733574,1738092638597,-2589.91,0.00016712,2]
[350733575,1738092638607,-500.0,0.00016712,2]
[350733576,1738092638616,-500.0,0.00016712,2]
[350733577,1738092638626,-2856.72,0.00016712,2]
[350733578,1738092638636,-553.59,0.00016712,2]
[350733579,1738092638646,-500.0,0.00016712,2]
[350733580,1738092638655,-1141.67,0.00016712,2]
[350733581,1738092638665,-500.0,0.00016712,2]
[350733582,1738092638674,-1469.38,0.00016712,2]
[350733583,1738092638684,-5312.76,0.00016712,2]
[350733584,1738092638693,-500.0,0.00016712,2]
[350733585,1738092638703,-500.0,0.00016712,2]
[350733586,1738092638714,-789.05,0.00016712,2]
[350733587,1738092638726,-500.0,0.00016712,2]
[350733588,1738092638736,-1463.04,0.00016712,2]
[350733589,1738092638746,-500.0,0.00016712,2]
[350733590,1738092638756,-500.0,0.00016712,2]
[350733591,1738092638765,-500.0,0.00016712,2]
[350733592,1738092638775,-500.0,0.00016712,2]
[350733593,1738092638784,-720.55,0.00016712,2]
[350733594,1738092638794,-547.3,0.00016712,2]
[350733595,1738092638804,-500.0,0.00016712,2]
[350733596,1738092638813,-500.0,0.00016712,2]
[350733597,1738092638823,-500.0,0.00016712,2]
[350733598,1738092638832,-500.0,0.00016712,2]
[350733599,1738092638841,-500.0,0.00016712,2]
[350733600,1738092638851,-500.0,0.00016712,2]
[350733601,1738092638862,-964.72,0.00016712,2]
[350733602,1738092638871,-500.0,0.00016712,2]
[350733603,1738092638882,-500.0,0.00016712,2]
[350733604,1738092638891,-500.0,0.00016712,2]
[350733605,1738092638901,-500.0,0.00016712,2]
[350733606,1738092638911,-500.0,0.00016712,2]
[350733607,1738092638921,-500.0,0.00016712,2]
[350733608,1738092638930,-500.0,0.00016712,2]
[350733609,1738092638939,-500.0,0.00016712,2]
[350733610,1738092638949,-579.6,0.00016712,2]
[350733611,1738092638958,-500.0,0.00016712,2]
[350733612,1738092638968,-500.0,0.00016712,2]
[350733613,1738092638980,-575.94,0.00016748,2]
[350733614,1738092638990,-500.0,0.00016808,7]
[350733615,1738092638999,-500.0,0.00016808,7]
[350733616,1738092639009,-500.0,0.00016808,7]
[350733617,1738092639018,-500.0,0.00016808,7]
[350733618,1738092639032,-500.0,0.00016808,7]
[350733619,1738092639042,-500.0,0.00016808,7]
[350733620,1738092639051,-500.0,0.00016808,7]
[350733621,1738092639061,-500.0,0.00016808,7]
[350733622,1738092639071,-500.0,0.00016808,7]
[350733623,1738092639080,-500.0,0.00016808,7]
[350733624,1738092639090,-500.0,0.00016808,7]
[350733625,1738092639099,-500.0,0.00016808,7]
[350733626,1738092639110,-500.0,0.00016808,7]
[350733627,1738092639119,-500.0,0.00016808,7]
[350733628,1738092639129,-575.94,0.00016848,2]
[350733629,1738092639139,-575.94,0.00016848,2]
[350733630,1738092639148,-575.94,0.00016848,2]
[350733631,1738092639158,-575.94,0.00016848,2]
[350733632,1738092639167,-575.94,0.00016848,2]
[350733633,1738092639177,-576.05084724,0.00016848,2]
[350733634,1738092639186,-500.0,0.00016849,2]
[350733635,1738092639196,-500.0,0.00016849,2]
[350733636,1738092639206,-246.55834315,0.00016849,2]
[350733637,1738092639215,-500.0,0.00016849,2]
[350733638,1738092639226,-500.0,0.00016849,2]
[350733639,1738092639236,-500.0,0.00016849,2]
[350733640,1738092639246,-500.0,0.00016849,2]
[350733641,1738092639255,-500.0,0.00016849,2]
[350733642,1738092639265,-284.01972344,0.00016849,2]
[350733643,1738092639275,-500.0,0.00016849,2]
[350733644,1738092639284,-500.0,0.00016849,2]
[350733645,1738092639297,-500.0,0.00016849,2]
[350733646,1738092639307,-500.0,0.00016849,2]
[350733647,1738092639316,-500.0,0.00016849,2]
[350733648,1738092639326,-500.0,0.00016849,2]
[350733649,1738092639335,-500.0,0.00016849,2]
[350733650,1738092639345,-500.0,0.00016849,2]
[350733651,1738092639355,-381.77309271,0.00016849,2]
[350733652,1738092639365,-500.0,0.00016849,2]
[350733653,1738092639375,-500.0,0.00016849,2]
[350733654,1738092639385,-500.0,0.00016849,2]
[350733655,1738092639395,-500.0,0.00016849,2]
[350733656,1738092639405,-500.0,0.00016849,2]
[350733657,1738092639414,-500.0,0.00016849,2]
[350733658,1738092639423,-500.0,0.00016849,2]
[350733659,1738092639433,-500.0,0.00016849,2]
[350733660,1738092639443,-250.74172576,0.00016849,2]
[350733661,1738092639453,-500.0,0.00016849,2]
[350733662,1738092639462,-598.03,0.00016849,2]
[350733663,1738092639472,-500.0,0.00016849,2]
[350733664,1738092639481,-500.0,0.00016849,2]
[350733665,1738092639490,-500.0,0.00016849,2]
[350733666,1738092639500,-500.0,0.00016849,2]
[350733667,1738092639510,-201.19208223,0.00016849,2]
[350733668,1738092639521,-150.11,0.00016849,2]
[350733669,1738092639531,-49.40014849,0.00016849,2]
[350733702,1738092640612,-500.0,0.00016436,2]
[350733703,1738092640623,-500.78857787,0.00016436,2]
[350733704,1738092640632,-500.78857787,0.00016436,2]
[350733705,1738092640642,-500.0,0.00016436,2]
[350733706,1738092640651,-500.78857787,0.00016436,2]
[350733707,1738092640660,-500.78857787,0.00016436,2]
[350733708,1738092640670,-60.59135718,0.00016436,2]
[350733709,1738092640681,-439.40864282,0.00016436,2]
[350733710,1738092640691,-500.78857787,0.00016436,2]
[350733711,1738092640701,-81.60277931,0.00016436,2]
[350733712,1738092640713,-419.18579856,0.00016436,2]
[350733713,1738092640725,-500.78857787,0.00016436,2]
[350733714,1738092640734,-317.75653439,0.00016436,2]
[350733715,1738092640744,-500.78857787,0.00016436,2]
[350733716,1738092640753,-500.78857787,0.00016436,2]
[350733717,1738092640762,-500.78857787,0.00016436,2]
[350733718,1738092640772,-500.78857787,0.00016436,2]
[350733719,1738092640782,-500.78857787,0.00016436,2]
[350733720,1738092640792,-500.78857787,0.00016436,2]
[350733721,1738092640802,-500.78857787,0.00016436,2]
[350733722,1738092640813,-500.78857787,0.00016436,2]
[350733723,1738092640824,-500.78857787,0.00016436,2]
[350733724,1738092640834,-500.78857787,0.00016436,2]
[350733725,1738092640843,-500.78857787,0.00016436,2]
[350733726,1738092640853,-500.78857787,0.00016436,2]
[350733727,1738092640863,-500.78857787,0.00016436,2]
[350733728,1738092640872,-500.78857787,0.00016436,2]
[350733729,1738092640883,-500.78857787,0.00016436,2]
[350733730,1738092640892,-440.48875603,0.00016436,2]
[350733731,1738092641044,-60.29982184,0.00016436,2]
[350733732,1738092641055,-500.78857787,0.00016436,2]
[350733733,1738092641065,-500.78857787,0.00016436,2]
[350733734,1738092641075,-500.78857787,0.00016436,2]
[350733735,1738092641086,-500.78857787,0.00016436,2]
[350733736,1738092641097,-500.78857787,0.00016436,2]
[350733737,1738092641107,-500.78857787,0.00016436,2]
[350733738,1738092641117,-500.78857787,0.00016436,2]
[350733739,1738092641127,-500.78857787,0.00016436,2]
[350733740,1738092641136,-500.78857787,0.00016436,2]
[350733741,1738092641147,-500.78857787,0.00016436,2]
[350733742,1738092641157,-500.78857787,0.00016436,2]
[350733743,1738092641169,-500.78857787,0.00016436,2]
[350733744,1738092641186,-500.78857787,0.00016436,2]
[350733745,1738092641196,-500.78857787,0.00016436,2]
[350733746,1738092641206,-500.78857787,0.00016436,2]
[350733747,1738092641216,-500.78857787,0.00016436,2]
[350733748,1738092641226,-500.78857787,0.00016436,2]
[350733749,1738092641236,-500.78857787,0.00016436,2]
[350733750,1738092641246,-500.78857787,0.00016436,2]
[350733751,1738092641256,-500.78857787,0.00016436,2]
[350733752,1738092641265,-500.78857787,0.00016436,2]
[350733753,1738092641275,-500.78857787,0.00016436,2]
[350733754,1738092641286,-500.78857787,0.00016436,2]
[350733755,1738092641296,-500.78857787,0.00016436,2]
[350733756,1738092641305,-500.78857787,0.00016436,2]
[350733757,1738092641315,-500.78857787,0.00016436,2]
[350733758,1738092641324,-500.78857787,0.00016436,2]
[350733759,1738092641333,-500.78857787,0.00016436,2]
[350733760,1738092641343,-500.78857787,0.00016436,2]
[350733761,1738092641353,-500.78857787,0.00016436,2]
[350733762,1738092641364,-500.78857787,0.00016436,2]
[350733763,1738092641373,-500.78857787,0.00016436,2]
[350733764,1738092641383,-500.78857787,0.00016436,2]
[350733765,1738092641394,-500.78857787,0.00016436,2]
[350733766,1738092641404,-500.78857787,0.00016436,2]
[350733767,1738092641415,-500.78857787,0.00016436,2]
[350733768,1738092641425,-500.78857787,0.00016436,2]
[350733769,1738092641435,-500.0,0.00016438,2]
[350733770,1738092641446,-500.0,0.00016575,2]
[350733771,1738092641456,-500.0,0.00016712,2]
[350733772,1738092641465,-450.59985151,0.00016849,2]
[350733773,1738092641475,-500.0,0.00016849,2]
[350733774,1738092641486,-500.0,0.00016849,2]
[350733775,1738092641496,-500.0,0.00016849,2]
[350733776,1738092641506,-500.0,0.00016849,2]
[350733777,1738092641515,-500.0,0.00016849,2]
[350733778,1738092641525,-500.0,0.00016849,2]
[350733779,1738092641535,-500.0,0.00016849,2]
[350733780,1738092641545,-267.89,0.00016849,2]
[350733781,1738092641555,-500.0,0.00016849,2]
[350733782,1738092641565,-500.0,0.00016849,2]
[350733783,1738092641574,-12925.94,0.00016849,2]
[350733784,1738092641584,-500.0,0.00016849,2]
[350733785,1738092641594,-500.0,0.00016849,2]
[350733786,1738092641604,-603.22,0.00016849,2]
[350733787,1738092641613,-799.47,0.00016849,2]
[350733788,1738092641623,-1999.81330064,0.00016849,2]
[350733815,1738092643242,-166.0,0.0001631,2]
[350733817,1738092643252,-334.0,0.00016475,2]
[350733818,1738092643349,-8155.2,0.00016475,2]
[350733908,1738093272568,246.811513,0.0001515,2]
[350733910,1738093328981,225.791756,0.00013973,2]
[350733911,1738093353004,760.252029,0.00014677,2]
[350733912,1738093453941,22035.63680422,0.00014456,2]
[350733913,1738093453969,2864.36319578,0.00014456,2]
[350733914,1738093478745,300.0,0.00015101,2]
[350733915,1738093488435,8852.191717,0.00014439,2]
[350733918,1738093723862,2334.6798884,0.00014456,2]
[350733966,1738093832591,-717.14,0.00015389,2]
[350733971,1738093832642,-261.72617251,0.00015389,2]
[350733973,1738093832652,-978.86617248,0.00015391,2]
[350733974,1738093832661,-978.86617248,0.00015393,2]
[350733976,1738093832671,-934.86136863,0.00015394,2]
[350733978,1738093832682,-44.00480385,0.00015394,2]
[350733980,1738093832691,-978.86617248,0.00015396,2]
[350733982,1738093832701,-978.86617248,0.00015398,2]
[350733984,1738093832711,-150.60843884,0.000154,2]
[350733986,1738093832720,-858.13603201,0.00015489,2]
[350733988,1738093832729,-300.0,0.00015498,2]
[350733990,1738093832739,-500.0,0.00015499,2]
[350733992,1738093832748,-392.00909317,0.00015499,2]
[350733994,1738093832758,-500.0,0.00015499,2]
[350733996,1738093832768,-588.68497984,0.00015499,2]
[350733998,1738093832778,-576.83473718,0.00015499,2]
[350733999,1738093832787,-500.0,0.00015499,2]
[350734001,1738093832798,-500.0,0.00015499,2]
[350734003,1738093832808,-500.0,0.00015499,2]
[350734005,1738093832817,-500.0,0.00015499,2]
[350734007,1738093832830,-394.87798124,0.00015499,2]
[350734010,1738093832839,-500.0,0.00015499,2]
[350734012,1738093832849,-500.0,0.00015499,2]
[350734014,1738093832860,-500.0,0.00015499,2]
[350734016,1738093832869,-500.0,0.00015499,2]
[350734018,1738093832879,-257.52850382,0.00015499,2]
[350734020,1738093832888,-10.08962748,0.00015499,2]
[350734085,1738093838347,-489.91037252,0.00015499,2]
[350734086,1738093838358,-51.92872138,0.00015499,2]
[350734087,1738093838370,-448.07127862,0.00015499,2]
[350734088,1738093838379,-372.03063561,0.00015499,2]
[350734089,1738093838388,-108.22698797,0.00015499,2]
[350734090,1738093838400,-391.77301203,0.00015499,2]
[350734091,1738093838409,-500.0,0.00015499,2]
[350734092,1738093838419,-500.0,0.00015499,2]
[350734093,1738093838428,-500.0,0.00015499,2]
[350734094,1738093838438,-500.0,0.00015499,2]
[350734095,1738093838449,-500.0,0.00015499,2]
[350734096,1738093838459,-500.0,0.00015499,2]
[350734097,1738093838469,-500.0,0.00015499,2]
[350734098,1738093838478,-591.96064985,0.00015499,2]
[350734099,1738093838489,-500.0,0.00015499,2]
[350734100,1738093838499,-500.0,0.00015499,2]
[350734101,1738093838509,-500.0,0.00015499,2]
[350734103,1738093838519,-500.0,0.00015499,2]
[350734105,1738093838528,-500.0,0.00015499,2]
[350734106,1738093838537,-500.0,0.00015499,2]
[350734108,1738093838546,-500.0,0.00015499,2]
[350734109,1738093838556,-500.0,0.00015499,2]
[350734111,1738093838565,-500.0,0.00015499,2]
[350734112,1738093838574,-500.0,0.00015499,2]
[350734113,1738093838585,-557.94005316,0.00015499,2]
[350734114,1738093838594,-500.0,0.00015499,2]
[350734115,1738093838604,-500.0,0.00015499,2]
[350734116,1738093838614,-569.83260063,0.00015499,2]
[350734117,1738093838623,-500.0,0.00015499,2]
[350734118,1738093838634,-500.0,0.00015499,2]
[350734119,1738093838643,-500.0,0.00015499,2]
[350734120,1738093838652,-500.0,0.00015499,2]
[350734121,1738093838662,-500.0,0.00015499,2]
[350734122,1738093838671,-500.0,0.00015499,2]
[350734123,1738093838680,-500.0,0.00015499,2]
[350734124,1738093838689,-500.0,0.00015499,2]
[350734125,1738093838699,-500.0,0.00015499,2]
[350734126,1738093838708,-500.0,0.00015499,2]
[350734127,1738093838717,-152.77908361,0.00015499,2]
[350734128,1738093838727,-500.0,0.00015499,2]
[350734129,1738093838736,-500.0,0.00015499,2]
[350734130,1738093838745,-500.0,0.00015499,2]
[350734131,1738093838755,-503.21138459,0.00015499,2]
[350734132,1738093838764,-500.0,0.00015499,2]
[350734133,1738093838773,-500.0,0.00015499,2]
[350734134,1738093838783,-500.0,0.00015499,2]
[350734135,1738093838792,-500.0,0.00015499,2]
[350734136,1738093838802,-500.0,0.00015499,2]
[350734137,1738093838811,-500.0,0.00015499,2]
[350734138,1738093838820,-500.0,0.00015499,2]
[350734139,1738093838830,-500.0,0.00015499,2]
[350734140,1738093838842,-500.0,0.00015499,2]
[350734141,1738093838851,-500.0,0.00015499,2]
[350734142,1738093838861,-500.0,0.00015499,2]
[350734143,1738093838870,-500.0,0.00015499,2]
[350734144,1738093838880,-500.0,0.00015499,2]
[350734145,1738093838890,-500.0,0.00015499,2]
[350734146,1738093838901,-500.0,0.00015499,2]
[350734147,1738093838915,-500.0,0.00015499,2]
[350734148,1738093838925,-500.0,0.00015499,2]
[350734149,1738093838935,-500.0,0.00015499,2]
[350734150,1738093838945,-500.0,0.00015499,2]
[350734151,1738093838955,-500.0,0.00015499,2]
[350734152,1738093838966,-500.0,0.00015499,2]
[350734153,1738093838975,-500.0,0.00015499,2]
[350734154,1738093838985,-499.99999999,0.00015499,2]
[350734155,1738093838995,-500.0,0.00015499,2]
[350734156,1738093839005,-500.0,0.00015499,2]
[350734157,1738093839016,-500.0,0.00015499,2]
[350734158,1738093839026,-500.0,0.00015499,2]
[350734159,1738093839036,-500.0,0.00015499,2]
[350734160,1738093839046,-500.0,0.00015499,2]
[350734161,1738093839055,-500.0,0.00015499,2]
[350734162,1738093839064,-500.0,0.00015499,2]
[350734163,1738093839074,-35871.24942529,0.000155,2]
[350734164,1738093839185,-5271.29698207,0.000155,2]
[350734188,1738093840631,-3076.57231634,0.000155,2]
[350734203,1738093843892,-926.38971456,0.00015235,2]
[350734204,1738093843946,-744.09330138,0.00015235,2]
[350734205,1738093845325,300.0,0.00015101,2]
[350734233,1738093846544,-1293.27240206,0.00015235,2]
[350734235,1738093846555,-1038.8,0.00015235,2]
[350734238,1738093846568,-312.4205083,0.00015235,2]
[350734240,1738093846578,-10216.13279672,0.000155,2]
[350734243,1738093846598,-5729.24738609,0.000155,2]
[350734245,1738093846610,-59215.46539394,0.000155,2]
[350734256,1738093846705,-323.56061344,0.000155,2]
[350734260,1738093846717,-602.46540731,0.000155,2]
[350734273,1738093962239,1230.639876,0.00014768,2]
[350734274,1738094061713,6756.5322251,0.00014745,2]
[350734275,1738094086521,-300.0,0.00015344,2]
[350734276,1738094134065,2010.0,0.00015447,2]
[350734277,1738094134101,2184.63891851,0.00015447,2]
[350734279,1738094233997,230.554628,0.00013973,2]
[350734280,1738094320207,935.721,0.0001519,2]
[350734281,1738094320261,175.889,0.0001519,2]
[350734282,1738094354205,23823.19645349,0.0001503,2]
[350734283,1738094354235,1076.80354651,0.0001503,2]
[350734284,1738094727548,503.531771,0.00014497,2]
[350734285,1738094727861,345.3494709,0.00015101,2]
[350734289,1738094767995,700.81778795,0.00015085,2]
[350734290,1738094834844,1705.69719702,0.00015101,2]
[350734341,1738095032743,-4556.97828275,0.00015235,2]
[350734342,1738095032754,-977.51016773,0.00015436,2]
[350734344,1738095032764,-151.0,0.0001549,2]
[350734346,1738095032774,-176.43,0.0001549,2]
[350734348,1738095032784,-176.43,0.0001549,2]
[350734350,1738095032798,-176.43,0.0001549,2]
[350734352,1738095032807,-176.43,0.0001549,2]
[350734353,1738095032817,-300.0,0.00015495,2]
[350734355,1738095032826,-500.0,0.00015499,2]
[350734357,1738095032837,-500.0,0.00015499,2]
[350734358,1738095032847,-500.0,0.00015499,2]
[350734359,1738095032856,-378.93399344,0.00015499,2]
[350734360,1738095032866,-385.12828622,0.00015499,2]
[350734361,1738095032876,-500.0,0.00015499,2]
[350734362,1738095032886,-42191.22400486,0.000155,2]
[350734363,1738095032904,-1528.0425261,0.000155,2]
[350734364,1738095032918,-2303.45629011,0.000155,2]
[350734365,1738095032929,-394.44286205,0.000155,2]
[350734366,1738095032942,-1339.25913146,0.000155,2]
[350734374,1738095038498,-475.46770592,0.000155,2]
[350734375,1738095038511,-733.27660066,0.000155,2]
[350734376,1738095038551,-495226.91592422,0.000155,2]
[350734377,1738095038561,-426.89093367,0.00015536,2]
[350734378,1738095038571,-503.42511213,0.00015636,2]
[350734379,1738095038581,-152.0,0.00015843,2]
[350734380,1738095038592,-154.186094,0.000159,2]
[350734381,1738095038603,-2500.0,0.00016,7]
[350734382,1738095038613,-154.3274537,0.00016,2]
[350734383,1738095038622,-362.9301175,0.00016,2]
[350734384,1738095038632,-154.3274537,0.00016,2]
[350734385,1738095038641,-215.4605405,0.00016,2]
[350734386,1738095038651,-153.0,0.00016,2]
[350734387,1738095038668,-153.0,0.00016,2]
[350734388,1738095038678,-153.0,0.00016,2]
[350734389,1738095038687,-157.334,0.0001601,2]
[350734390,1738095038696,-215.4605405,0.000161,2]
[350734391,1738095038706,-154.3274537,0.000161,2]
[350734392,1738095038716,-154.3274537,0.000161,2]
[350734393,1738095038725,-155.539808,0.00016224,5]
[350734394,1738095038736,-6227.35957324,0.00016238,2]
[350734395,1738095038745,-465.04262286,0.000163,2]
[350734396,1738095038755,-502.68921892,0.00016438,2]
[350734397,1738095038764,-500.51000536,0.00016438,2]
[350734398,1738095038774,-500.0,0.00016438,2]
[350734399,1738095038784,-500.0,0.00016438,2]
[350734400,1738095038795,-500.0,0.00016438,2]
[350734401,1738095038807,-500.0,0.00016438,2]
[350734402,1738095038823,-599.25,0.00016438,2]
[350734403,1738095038835,-501.23570704,0.00016438,2]
[350734404,1738095038845,-500.0,0.00016438,2]
[350734405,1738095038855,-503.22476783,0.00016438,2]
[350734406,1738095038865,-500.0,0.00016438,2]
[350734407,1738095038877,-500.0,0.00016438,2]
[350734408,1738095038887,-500.0,0.00016438,2]
[350734409,1738095038897,-502.90259631,0.00016438,2]
[350734410,1738095038906,-502.7150642,0.00016438,2]
[350734411,1738095038917,-500.0,0.00016438,2]
[350734412,1738095038927,-500.0,0.00016438,2]
[350734413,1738095038937,-500.0,0.00016438,2]
[350734414,1738095038946,-1000.0,0.00016438,2]
[350734415,1738095038956,-500.0,0.00016438,2]